[Event "Titled Tuesday Blitz April 25 Late 2023"]
[White "Toma, Katarzyna"]
[Black "Aigner, Michael"]
[WhiteFideId "1119907"]
[BlackFideId "2017288"]
[WhiteElo "2149"]
[BlackElo "1966"]
[Result "0-1"]
[Round "06"]
[TimeControl "180+2"]
[Date "2023.04.25"]
[WhiteClock "0:00:01"]
[BlackClock "0:01:40"]

1. d4 {[%clk 0:03:00]}  f5 {[%clk 0:02:58]} 2. Nf3 {[%clk 0:02:57]}  Nf6 {[%clk 0:02:58]} 3. g3 {[%clk 0:02:57]}  e6 {[%clk 0:02:57]} 4. Bg2 {[%clk 0:02:57]}  d5 {[%clk 0:02:58]} 5. O-O {[%clk 0:02:55]}  Bd6 {[%clk 0:02:58]} 6. Nbd2 {[%clk 0:02:52]}  Nbd7 {[%clk 0:02:55]} 7. c4 {[%clk 0:02:51]}  c6 {[%clk 0:02:55]} 8. c5 {[%clk 0:02:47]}  Bc7 {[%clk 0:02:54]} 9. b4 {[%clk 0:02:47]}  e5 {[%clk 0:02:54]} 10. dxe5 {[%clk 0:02:45]}  Nxe5 {[%clk 0:02:55]} 11. Bb2 {[%clk 0:02:42]}  Qe7 {[%clk 0:02:55]} 12. Nxe5 {[%clk 0:02:15]}  Bxe5 {[%clk 0:02:53]} 13. Bxe5 {[%clk 0:02:14]}  Qxe5 {[%clk 0:02:54]} 14. Nf3 {[%clk 0:02:14]}  Qe7 {[%clk 0:02:54]} 15. Nd4 {[%clk 0:02:12]}  O-O {[%clk 0:02:51]} 16. e3 {[%clk 0:02:04]}  a6 {[%clk 0:02:46]} 17. a4 {[%clk 0:02:02]}  Bd7 {[%clk 0:02:45]} 18. Qc2 {[%clk 0:01:54]}  Ne4 {[%clk 0:02:44]} 19. Rfc1 {[%clk 0:01:49]}  Rac8 {[%clk 0:02:40]} 20. Ra2 {[%clk 0:01:40]}  g6 {[%clk 0:02:35]} 21. Qb3 {[%clk 0:01:34]}  Kg7 {[%clk 0:02:33]} 22. Rac2 {[%clk 0:01:32]}  h5 {[%clk 0:02:24]} 23. h4 {[%clk 0:01:27]}  g5 {[%clk 0:02:21]} 24. hxg5 {[%clk 0:00:56]}  Qxg5 {[%clk 0:02:20]} 25. b5 {[%clk 0:00:45]}  axb5 {[%clk 0:02:07]} 26. axb5 {[%clk 0:00:45]}  Qf6 {[%clk 0:02:06]} 27. bxc6 {[%clk 0:00:43]}  bxc6 {[%clk 0:02:05]} 28. Qb7 {[%clk 0:00:35]}  Rf7 {[%clk 0:02:05]} 29. Ra2 {[%clk 0:00:17]}  Rh8 {[%clk 0:02:03]} 30. Nf3 {[%clk 0:00:15]}  Qe7 {[%clk 0:01:55]} 31. Kf1 {[%clk 0:00:08]}  Nxc5 {[%clk 0:01:52]} 32. Qb4 {[%clk 0:00:06]}  Ne4 {[%clk 0:01:49]} 33. Qd4+ {[%clk 0:00:03]}  Qf6 {[%clk 0:01:49]} 34. Ne5 {[%clk 0:00:01]}  Re7 {[%clk 0:01:46]} 35. Nxd7 {[%clk 0:00:01]}  Qxd4 {[%clk 0:01:40]} 0-1


[Site "https://www.chess.com"]

[Event "Titled Tuesday Blitz April 25 Late 2023"]
[White "Leschinsky, Gary"]
[Black "Fuentes Godoy, Lilia Ivonne"]
[WhiteFideId "30951321"]
[BlackFideId "5104130"]
[WhiteElo "1855"]
[BlackElo "2096"]
[Result "0-1"]
[Round "06"]
[TimeControl "180+2"]
[Date "2023.04.25"]
[WhiteClock "0:00:06"]
[BlackClock "0:02:22"]

1. d4 {[%clk 0:01:31]}  d5 {[%clk 0:02:57]} 2. c4 {[%clk 0:01:32]}  e6 {[%clk 0:02:56]} 3. Nc3 {[%clk 0:01:29]}  c6 {[%clk 0:02:53]} 4. cxd5 {[%clk 0:00:59]}  exd5 {[%clk 0:02:41]} 5. Qc2 {[%clk 0:00:58]}  Nf6 {[%clk 0:02:35]} 6. Nf3 {[%clk 0:00:56]}  g6 {[%clk 0:02:35]} 7. Bf4 {[%clk 0:00:48]}  Bg7 {[%clk 0:02:32]} 8. e3 {[%clk 0:00:45]}  Bf5 {[%clk 0:02:29]} 9. Bd3 {[%clk 0:00:23]}  Bxd3 {[%clk 0:02:29]} 10. Qxd3 {[%clk 0:00:24]}  O-O {[%clk 0:02:29]} 11. O-O {[%clk 0:00:12]}  Nbd7 {[%clk 0:02:28]} 12. h3 {[%clk 0:00:12]}  Re8 {[%clk 0:02:28]} 13. Nd2 {[%clk 0:00:10]}  a5 {[%clk 0:02:24]} 14. Bg3 {[%clk 0:00:08]}  b5 {[%clk 0:02:22]} 15. a3 {[%clk 0:00:06]}  Nb6 {[%clk 0:02:22]} 0-1


[Site "https://www.chess.com"]

[Event "Titled Tuesday Blitz April 25 Late 2023"]
[White "yoriiiis"]
[Black "Figorito, Nick"]
[BlackFideId "30923689"]
[WhiteElo "2127"]
[BlackElo "2036"]
[Result "0-1"]
[Round "06"]
[TimeControl "180+2"]
[Date "2023.04.25"]
[WhiteClock "0:00:08"]
[BlackClock "0:00:27"]

1. e4 {[%clk 0:03:00]}  e6 {[%clk 0:03:00]} 2. d4 {[%clk 0:03:00]}  d5 {[%clk 0:03:01]} 3. Nc3 {[%clk 0:03:01]}  Bb4 {[%clk 0:03:00]} 4. e5 {[%clk 0:03:01]}  c5 {[%clk 0:03:01]} 5. a3 {[%clk 0:03:01]}  Bxc3+ {[%clk 0:03:01]} 6. bxc3 {[%clk 0:03:01]}  Ne7 {[%clk 0:03:02]} 7. h4 {[%clk 0:03:00]}  Qa5 {[%clk 0:03:02]} 8. Bd2 {[%clk 0:03:00]}  Qa4 {[%clk 0:03:02]} 9. Qg4 {[%clk 0:02:55]}  Kf8 {[%clk 0:03:02]} 10. h5 {[%clk 0:02:54]}  h6 {[%clk 0:03:02]} 11. Bd3 {[%clk 0:02:53]}  Nbc6 {[%clk 0:03:02]} 12. Nf3 {[%clk 0:02:48]}  c4 {[%clk 0:03:00]} 13. Be2 {[%clk 0:02:48]}  Qxc2 {[%clk 0:03:00]} 14. O-O {[%clk 0:02:44]}  Qf5 {[%clk 0:02:59]} 15. Qh4 {[%clk 0:02:38]}  Bd7 {[%clk 0:02:44]} 16. Rab1 {[%clk 0:02:35]}  Na5 {[%clk 0:02:42]} 17. Rb2 {[%clk 0:02:19]}  Nb3 {[%clk 0:02:41]} 18. Be3 {[%clk 0:02:05]}  a5 {[%clk 0:02:38]} 19. Bd1 {[%clk 0:02:00]}  Qe4 {[%clk 0:02:03]} 20. Qxe4 {[%clk 0:01:40]}  dxe4 {[%clk 0:02:04]} 21. Nd2 {[%clk 0:01:35]}  Nxd2 {[%clk 0:02:03]} 22. Bxd2 {[%clk 0:01:35]}  Bc6 {[%clk 0:02:00]} 23. a4 {[%clk 0:01:30]}  f5 {[%clk 0:01:48]} 24. Be2 {[%clk 0:01:21]}  Bd5 {[%clk 0:01:43]} 25. Rfb1 {[%clk 0:01:20]}  Kf7 {[%clk 0:01:41]} 26. Rb5 {[%clk 0:01:15]}  Rhc8 {[%clk 0:01:33]} 27. Bc1 {[%clk 0:01:11]}  Bc6 {[%clk 0:01:29]} 28. Rb6 {[%clk 0:01:07]}  Nd5 {[%clk 0:01:25]} 29. Rxb7+ {[%clk 0:00:46]}  Bxb7 {[%clk 0:01:24]} 30. Rxb7+ {[%clk 0:00:46]}  Kg8 {[%clk 0:01:24]} 31. Bd2 {[%clk 0:00:40]}  Rab8 {[%clk 0:01:00]} 32. Rxb8 {[%clk 0:00:27]}  Rxb8 {[%clk 0:01:01]} 33. Bxc4 {[%clk 0:00:26]}  Rc8 {[%clk 0:01:02]} 34. Bxd5 {[%clk 0:00:24]}  exd5 {[%clk 0:01:03]} 35. Kf1 {[%clk 0:00:21]}  Rc4 {[%clk 0:01:03]} 36. Ke2 {[%clk 0:00:20]}  Rxa4 {[%clk 0:01:03]} 37. Kd1 {[%clk 0:00:20]}  Ra2 {[%clk 0:01:00]} 38. Kc1 {[%clk 0:00:20]}  Kf7 {[%clk 0:00:59]} 39. Be3 {[%clk 0:00:20]}  Ke6 {[%clk 0:00:55]} 40. g3 {[%clk 0:00:19]}  Kd7 {[%clk 0:00:46]} 41. Kb1 {[%clk 0:00:19]}  Re2 {[%clk 0:00:46]} 42. Kc1 {[%clk 0:00:19]}  Re1+ {[%clk 0:00:46]} 43. Kb2 {[%clk 0:00:18]}  Rh1 {[%clk 0:00:47]} 44. Kb3 {[%clk 0:00:18]}  Rxh5 {[%clk 0:00:42]} 45. Ka4 {[%clk 0:00:17]}  Rh1 {[%clk 0:00:40]} 46. Kxa5 {[%clk 0:00:17]}  Rb1 {[%clk 0:00:40]} 47. Bf4 {[%clk 0:00:14]}  g5 {[%clk 0:00:38]} 48. Be3 {[%clk 0:00:14]}  Ke6 {[%clk 0:00:37]} 49. Bd2 {[%clk 0:00:12]}  Rb2 {[%clk 0:00:36]} 50. Be3 {[%clk 0:00:12]}  h5 {[%clk 0:00:27]} 51. Bxg5 {[%clk 0:00:11]}  Rxf2 {[%clk 0:00:27]} 52. Bf4 {[%clk 0:00:11]}  Rb2 {[%clk 0:00:26]} 53. Bg5 {[%clk 0:00:09]}  Rb3 {[%clk 0:00:24]} 54. Bd2 {[%clk 0:00:08]}  e3 {[%clk 0:00:25]} 55. Bxe3 {[%clk 0:00:08]}  Rxc3 {[%clk 0:00:25]} 56. Bf4 {[%clk 0:00:07]}  Rd3 {[%clk 0:00:24]} 57. Kb4 {[%clk 0:00:07]}  Rxd4+ {[%clk 0:00:25]} 58. Kc5 {[%clk 0:00:07]}  Rxf4 {[%clk 0:00:24]} 59. gxf4 {[%clk 0:00:07]}  h4 {[%clk 0:00:25]} 60. Kd4 {[%clk 0:00:07]}  h3 {[%clk 0:00:26]} 61. Ke3 {[%clk 0:00:08]}  h2 {[%clk 0:00:27]} 0-1


[Site "https://www.chess.com"]

[Event "Titled Tuesday Blitz April 25 Late 2023"]
[White "Sanchez, Robert"]
[Black "Holtel, Jasper"]
[WhiteFideId "2034360"]
[BlackFideId "12956376"]
[WhiteElo "1966"]
[BlackElo "2372"]
[Result "0-1"]
[Round "06"]
[TimeControl "180+2"]
[Date "2023.04.25"]
[WhiteClock "0:01:32"]
[BlackClock "0:01:04"]

1. e4 {[%clk 0:02:55]}  e6 {[%clk 0:02:59]} 2. d4 {[%clk 0:02:38]}  d5 {[%clk 0:02:59]} 3. Nc3 {[%clk 0:02:37]}  Nf6 {[%clk 0:02:58]} 4. e5 {[%clk 0:02:37]}  Nfd7 {[%clk 0:02:58]} 5. f4 {[%clk 0:02:36]}  c5 {[%clk 0:02:59]} 6. Nf3 {[%clk 0:02:29]}  Nc6 {[%clk 0:02:59]} 7. Be3 {[%clk 0:02:28]}  cxd4 {[%clk 0:02:59]} 8. Nxd4 {[%clk 0:02:28]}  Qb6 {[%clk 0:02:59]} 9. Qd2 {[%clk 0:02:26]}  Qxb2 {[%clk 0:02:59]} 10. Rb1 {[%clk 0:02:26]}  Qa3 {[%clk 0:02:59]} 11. Rb3 {[%clk 0:02:21]}  Qa5 {[%clk 0:02:52]} 12. Bb5 {[%clk 0:02:21]}  Nxd4 {[%clk 0:02:48]} 13. Bxd4 {[%clk 0:02:21]}  a6 {[%clk 0:02:46]} 14. Bxd7+ {[%clk 0:02:21]}  Bxd7 {[%clk 0:02:44]} 15. Rxb7 {[%clk 0:02:21]}  Bc5 {[%clk 0:02:09]} 16. O-O {[%clk 0:02:17]}  Bc6 {[%clk 0:01:51]} 17. Rb3 {[%clk 0:02:11]}  O-O {[%clk 0:01:45]} 18. Kh1 {[%clk 0:02:10]}  Bxd4 {[%clk 0:01:42]} 19. Qxd4 {[%clk 0:02:09]}  Rfc8 {[%clk 0:01:41]} 20. h3 {[%clk 0:01:59]}  Bb5 {[%clk 0:01:29]} 21. Rf3 {[%clk 0:01:47]}  Rc4 {[%clk 0:01:23]} 22. Qf2 {[%clk 0:01:45]}  Rac8 {[%clk 0:01:20]} 23. f5 {[%clk 0:01:40]}  Rxc3 {[%clk 0:01:12]} 24. fxe6 {[%clk 0:01:40]}  Rxf3 {[%clk 0:01:10]} 25. Qxf3 {[%clk 0:01:34]}  Qe1+ {[%clk 0:01:04]} 26. Kh2 {[%clk 0:01:32]} 0-1


[Site "https://www.chess.com"]

[Event "Titled Tuesday Blitz April 25 Late 2023"]
[White "Esipenko, Andrey"]
[Black "Nakamura, Hikaru"]
[WhiteFideId "24175439"]
[BlackFideId "2016192"]
[WhiteElo "2615"]
[BlackElo "2885"]
[Result "1-0"]
[Round "07"]
[TimeControl "180+2"]
[Date "2023.04.25"]
[WhiteClock "0:00:10"]
[BlackClock "0:00:28"]

1. d4 {[%clk 0:03:00]}  Nf6 {[%clk 0:02:59]} 2. c4 {[%clk 0:02:59]}  e6 {[%clk 0:03:00]} 3. Nf3 {[%clk 0:02:59]}  Bb4+ {[%clk 0:03:00]} 4. Nbd2 {[%clk 0:02:58]}  b6 {[%clk 0:02:59]} 5. a3 {[%clk 0:02:58]}  Bxd2+ {[%clk 0:03:00]} 6. Bxd2 {[%clk 0:02:58]}  Bb7 {[%clk 0:03:00]} 7. e3 {[%clk 0:02:54]}  Ne4 {[%clk 0:02:58]} 8. Be2 {[%clk 0:02:47]}  Nxd2 {[%clk 0:02:58]} 9. Qxd2 {[%clk 0:02:46]}  d6 {[%clk 0:02:58]} 10. O-O {[%clk 0:02:46]}  Nd7 {[%clk 0:02:59]} 11. d5 {[%clk 0:02:45]}  e5 {[%clk 0:02:57]} 12. Qc2 {[%clk 0:02:42]}  a5 {[%clk 0:02:57]} 13. b4 {[%clk 0:02:42]}  O-O {[%clk 0:02:57]} 14. Nd2 {[%clk 0:02:30]}  Qe7 {[%clk 0:02:52]} 15. Nb3 {[%clk 0:02:25]}  f5 {[%clk 0:02:38]} 16. Bd3 {[%clk 0:02:21]}  a4 {[%clk 0:02:27]} 17. Nd2 {[%clk 0:02:13]}  e4 {[%clk 0:02:27]} 18. Be2 {[%clk 0:02:13]}  Ne5 {[%clk 0:02:28]} 19. Rac1 {[%clk 0:02:01]}  Rf7 {[%clk 0:02:20]} 20. Qc3 {[%clk 0:01:47]}  Re8 {[%clk 0:02:16]} 21. Qd4 {[%clk 0:01:45]}  Ba6 {[%clk 0:02:06]} 22. Rfe1 {[%clk 0:01:36]}  Ref8 {[%clk 0:01:53]} 23. f4 {[%clk 0:00:57]}  exf3 {[%clk 0:01:52]} 24. Nxf3 {[%clk 0:00:58]}  f4 {[%clk 0:01:38]} 25. Nxe5 {[%clk 0:00:41]}  dxe5 {[%clk 0:01:38]} 26. Qe4 {[%clk 0:00:42]}  Bc8 {[%clk 0:01:24]} 27. exf4 {[%clk 0:00:39]}  Rxf4 {[%clk 0:01:24]} 28. Qe3 {[%clk 0:00:40]}  Qg5 {[%clk 0:01:24]} 29. c5 {[%clk 0:00:39]}  Bg4 {[%clk 0:01:20]} 30. d6 {[%clk 0:00:33]}  Be6 {[%clk 0:00:39]} 31. dxc7 {[%clk 0:00:27]}  b5 {[%clk 0:00:38]} 32. Bxb5 {[%clk 0:00:19]}  Bd5 {[%clk 0:00:38]} 33. g3 {[%clk 0:00:20]}  h5 {[%clk 0:00:37]} 34. Qxe5 {[%clk 0:00:17]}  R4f5 {[%clk 0:00:34]} 35. Qe3 {[%clk 0:00:17]}  Qf6 {[%clk 0:00:33]} 36. Bd7 {[%clk 0:00:10]}  Rf2 {[%clk 0:00:31]} 37. Be6+ {[%clk 0:00:10]}  Bxe6 {[%clk 0:00:26]} 38. Qxe6+ {[%clk 0:00:11]}  Qxe6 {[%clk 0:00:27]} 39. Rxe6 {[%clk 0:00:11]}  R2f7 {[%clk 0:00:28]} 40. Rc6 {[%clk 0:00:09]}  Rc8 {[%clk 0:00:28]} 41. b5 {[%clk 0:00:10]} 1-0


[Site "https://www.chess.com"]

[Event "Titled Tuesday Blitz April 25 Late 2023"]
[White "Makarian, Rudik"]
[Black "Duda, Jan-Krzysztof"]
[WhiteFideId "44105681"]
[BlackFideId "1170546"]
[WhiteElo "2430"]
[BlackElo "2790"]
[Result "1/2-1/2"]
[Round "07"]
[TimeControl "180+2"]
[Date "2023.04.25"]
[WhiteClock "0:00:08"]
[BlackClock "0:00:04"]

1. d4 {[%clk 0:03:00]}  Nf6 {[%clk 0:02:59]} 2. c4 {[%clk 0:03:01]}  g6 {[%clk 0:03:00]} 3. Nc3 {[%clk 0:03:01]}  d5 {[%clk 0:03:01]} 4. Bf4 {[%clk 0:03:00]}  Bg7 {[%clk 0:03:01]} 5. e3 {[%clk 0:03:01]}  O-O {[%clk 0:03:00]} 6. Rc1 {[%clk 0:03:02]}  Be6 {[%clk 0:02:57]} 7. Nf3 {[%clk 0:03:01]}  dxc4 {[%clk 0:02:48]} 8. Ng5 {[%clk 0:03:01]}  Bd5 {[%clk 0:02:48]} 9. e4 {[%clk 0:03:02]}  h6 {[%clk 0:02:47]} 10. exd5 {[%clk 0:03:02]}  hxg5 {[%clk 0:02:47]} 11. Bxg5 {[%clk 0:03:03]}  Nxd5 {[%clk 0:02:48]} 12. Bxc4 {[%clk 0:03:03]}  Nb6 {[%clk 0:02:47]} 13. Bb3 {[%clk 0:03:04]}  Nc6 {[%clk 0:02:46]} 14. d5 {[%clk 0:03:04]}  Nd4 {[%clk 0:02:46]} 15. O-O {[%clk 0:03:05]}  Qd7 {[%clk 0:02:44]} 16. a4 {[%clk 0:02:43]}  a5 {[%clk 0:02:37]} 17. Ba2 {[%clk 0:02:41]}  Rfe8 {[%clk 0:02:29]} 18. Re1 {[%clk 0:02:42]}  Rad8 {[%clk 0:02:19]} 19. h4 {[%clk 0:02:37]}  c6 {[%clk 0:01:51]} 20. dxc6 {[%clk 0:02:29]}  bxc6 {[%clk 0:01:52]} 21. Qd3 {[%clk 0:02:08]}  Nd5 {[%clk 0:01:37]} 22. Nxd5 {[%clk 0:01:49]}  cxd5 {[%clk 0:01:38]} 23. h5 {[%clk 0:01:46]}  Qg4 {[%clk 0:01:16]} 24. Bxe7 {[%clk 0:01:28]}  Rd7 {[%clk 0:01:16]} 25. Bc5 {[%clk 0:01:21]}  Rxe1+ {[%clk 0:01:08]} 26. Rxe1 {[%clk 0:01:20]}  Ne6 {[%clk 0:01:08]} 27. Qb5 {[%clk 0:00:59]}  Nxc5 {[%clk 0:00:42]} 28. Qxc5 {[%clk 0:00:42]}  Bd4 {[%clk 0:00:42]} 29. Qc8+ {[%clk 0:00:40]}  Kg7 {[%clk 0:00:42]} 30. hxg6 {[%clk 0:00:35]}  Qf4 {[%clk 0:00:25]} 31. Rf1 {[%clk 0:00:31]}  Re7 {[%clk 0:00:22]} 32. Qc2 {[%clk 0:00:26]}  Re5 {[%clk 0:00:20]} 33. gxf7 {[%clk 0:00:11]}  Rh5 {[%clk 0:00:20]} 34. f8=Q+ {[%clk 0:00:12]}  Kxf8 {[%clk 0:00:20]} 35. Qc8+ {[%clk 0:00:12]}  Kg7 {[%clk 0:00:20]} 36. Qd7+ {[%clk 0:00:10]}  Kf8 {[%clk 0:00:14]} 37. Qd8+ {[%clk 0:00:08]}  Kg7 {[%clk 0:00:12]} 38. Qe7+ {[%clk 0:00:08]}  Kh6 {[%clk 0:00:10]} 39. Qe6+ {[%clk 0:00:08]}  Kg7 {[%clk 0:00:04]} 40. Qe7+ {[%clk 0:00:07]}  Kh6 {[%clk 0:00:04]} 41. Qe6+ {[%clk 0:00:08]}  Kg7 {[%clk 0:00:04]} 42. Qe7+ {[%clk 0:00:08]} 1/2-1/2


[Site "https://www.chess.com"]

[Event "Titled Tuesday Blitz April 25 Late 2023"]
[White "Janik, Igor"]
[Black "Martinez Alcantara, Jose Eduardo"]
[WhiteFideId "1159259"]
[BlackFideId "3805662"]
[WhiteElo "2484"]
[BlackElo "2711"]
[Result "0-1"]
[Round "07"]
[TimeControl "180+2"]
[Date "2023.04.25"]
[WhiteClock "0:00:02"]
[BlackClock "0:00:09"]

1. e4 {[%clk 0:03:00]}  c5 {[%clk 0:02:59]} 2. Nf3 {[%clk 0:03:01]}  d6 {[%clk 0:03:00]} 3. Bb5+ {[%clk 0:03:01]}  Nd7 {[%clk 0:02:58]} 4. O-O {[%clk 0:03:00]}  a6 {[%clk 0:02:58]} 5. Bd3 {[%clk 0:03:00]}  Ngf6 {[%clk 0:02:58]} 6. Re1 {[%clk 0:03:00]}  e6 {[%clk 0:02:55]} 7. a4 {[%clk 0:03:00]}  b6 {[%clk 0:02:55]} 8. c3 {[%clk 0:03:00]}  Bb7 {[%clk 0:02:55]} 9. Bc2 {[%clk 0:03:01]}  c4 {[%clk 0:02:48]} 10. Na3 {[%clk 0:02:59]}  Rc8 {[%clk 0:02:47]} 11. d4 {[%clk 0:02:28]}  cxd3 {[%clk 0:02:47]} 12. Bxd3 {[%clk 0:02:28]}  Nc5 {[%clk 0:02:40]} 13. Bg5 {[%clk 0:02:28]}  h6 {[%clk 0:02:34]} 14. Bxf6 {[%clk 0:02:28]}  gxf6 {[%clk 0:02:35]} 15. b4 {[%clk 0:02:15]}  Nd7 {[%clk 0:02:34]} 16. Nc4 {[%clk 0:02:11]}  Qc7 {[%clk 0:02:29]} 17. Bf1 {[%clk 0:02:09]}  Rg8 {[%clk 0:02:25]} 18. Qd2 {[%clk 0:02:01]}  Rg4 {[%clk 0:02:17]} 19. Qd3 {[%clk 0:01:41]}  Be7 {[%clk 0:02:07]} 20. Rad1 {[%clk 0:01:36]}  d5 {[%clk 0:02:03]} 21. exd5 {[%clk 0:01:12]}  Bxd5 {[%clk 0:02:00]} 22. Ne3 {[%clk 0:00:56]}  Bxf3 {[%clk 0:01:48]} 23. Nxg4 {[%clk 0:00:57]}  Bxg4 {[%clk 0:01:48]} 24. Rc1 {[%clk 0:00:54]}  a5 {[%clk 0:01:28]} 25. Qh7 {[%clk 0:00:50]}  Bf5 {[%clk 0:01:19]} 26. Qxh6 {[%clk 0:00:48]}  Bf8 {[%clk 0:01:13]} 27. Qe3 {[%clk 0:00:32]}  Bd6 {[%clk 0:00:50]} 28. g3 {[%clk 0:00:16]}  Ke7 {[%clk 0:00:46]} 29. Bb5 {[%clk 0:00:12]}  Ne5 {[%clk 0:00:45]} 30. f4 {[%clk 0:00:06]}  Ng4 {[%clk 0:00:31]} 31. Qd2 {[%clk 0:00:06]}  Rd8 {[%clk 0:00:30]} 32. Qe2 {[%clk 0:00:06]}  Rh8 {[%clk 0:00:14]} 33. Red1 {[%clk 0:00:03]}  Rxh2 {[%clk 0:00:13]} 34. Qf3 {[%clk 0:00:02]}  axb4 {[%clk 0:00:09]} 35. cxb4 {[%clk 0:00:02]}  Rc2 {[%clk 0:00:09]} 0-1


[Site "https://www.chess.com"]

[Event "Titled Tuesday Blitz April 25 Late 2023"]
[White "Svane, Frederik"]
[Black "Firouzja, Alireza"]
[WhiteFideId "12923044"]
[BlackFideId "12573981"]
[WhiteElo "2502"]
[BlackElo "2904"]
[Result "0-1"]
[Round "07"]
[TimeControl "180+2"]
[Date "2023.04.25"]
[WhiteClock "0:00:02"]
[BlackClock "0:00:05"]

1. g3 {[%clk 0:02:59]}  e5 {[%clk 0:02:58]} 2. c4 {[%clk 0:02:59]}  Nf6 {[%clk 0:02:57]} 3. Bg2 {[%clk 0:02:57]}  c6 {[%clk 0:02:58]} 4. d4 {[%clk 0:02:56]}  e4 {[%clk 0:02:57]} 5. Nc3 {[%clk 0:02:55]}  d5 {[%clk 0:02:57]} 6. f3 {[%clk 0:02:56]}  exf3 {[%clk 0:02:50]} 7. Nxf3 {[%clk 0:02:56]}  dxc4 {[%clk 0:02:51]} 8. O-O {[%clk 0:02:54]}  Be7 {[%clk 0:02:50]} 9. e4 {[%clk 0:02:54]}  O-O {[%clk 0:02:50]} 10. Qe2 {[%clk 0:02:48]}  b5 {[%clk 0:02:38]} 11. a3 {[%clk 0:02:15]}  Bg4 {[%clk 0:02:29]} 12. Be3 {[%clk 0:02:14]}  Nbd7 {[%clk 0:02:25]} 13. h3 {[%clk 0:02:11]}  Bh5 {[%clk 0:02:25]} 14. Rad1 {[%clk 0:01:47]}  Re8 {[%clk 0:02:18]} 15. g4 {[%clk 0:00:43]}  Bg6 {[%clk 0:02:15]} 16. Nd2 {[%clk 0:00:43]}  Nb6 {[%clk 0:02:10]} 17. h4 {[%clk 0:00:38]}  h5 {[%clk 0:02:07]} 18. e5 {[%clk 0:00:31]}  Nxg4 {[%clk 0:02:00]} 19. Bxc6 {[%clk 0:00:30]}  Bxh4 {[%clk 0:01:55]} 20. Nde4 {[%clk 0:00:26]}  a6 {[%clk 0:01:38]} 21. Bxe8 {[%clk 0:00:23]}  Qxe8 {[%clk 0:01:37]} 22. Nd6 {[%clk 0:00:24]}  Qd7 {[%clk 0:01:28]} 23. Qf3 {[%clk 0:00:21]}  Rf8 {[%clk 0:01:28]} 24. Nce4 {[%clk 0:00:18]}  Nd5 {[%clk 0:01:10]} 25. Nc5 {[%clk 0:00:18]}  Qc6 {[%clk 0:01:10]} 26. Bc1 {[%clk 0:00:16]}  Be7 {[%clk 0:01:08]} 27. Nce4 {[%clk 0:00:10]}  f6 {[%clk 0:00:27]} 28. Nc3 {[%clk 0:00:03]}  fxe5 {[%clk 0:00:27]} 29. Qxd5+ {[%clk 0:00:04]}  Qxd5 {[%clk 0:00:26]} 30. Nxd5 {[%clk 0:00:04]}  Bxd6 {[%clk 0:00:26]} 31. Rxf8+ {[%clk 0:00:05]}  Kxf8 {[%clk 0:00:26]} 32. dxe5 {[%clk 0:00:05]}  Nxe5 {[%clk 0:00:21]} 33. Bf4 {[%clk 0:00:05]}  Bc5+ {[%clk 0:00:21]} 34. Kh2 {[%clk 0:00:05]}  Nd3 {[%clk 0:00:21]} 35. Rf1 {[%clk 0:00:03]}  Bf7 {[%clk 0:00:17]} 36. Bd2 {[%clk 0:00:02]}  Nxb2 {[%clk 0:00:14]} 37. Nc7 {[%clk 0:00:02]}  Bxa3 {[%clk 0:00:12]} 38. Ne6+ {[%clk 0:00:03]}  Kg8 {[%clk 0:00:12]} 39. Ng5 {[%clk 0:00:03]}  Bd6+ {[%clk 0:00:12]} 40. Kh3 {[%clk 0:00:03]}  Bg6 {[%clk 0:00:11]} 41. Bc3 {[%clk 0:00:03]}  Nd3 {[%clk 0:00:11]} 42. Ra1 {[%clk 0:00:04]}  Be7 {[%clk 0:00:08]} 43. Rxa6 {[%clk 0:00:03]}  Bxg5 {[%clk 0:00:04]} 44. Rxg6 {[%clk 0:00:04]}  Nf4+ {[%clk 0:00:05]} 45. Kg3 {[%clk 0:00:02]}  Nxg6 {[%clk 0:00:05]} 0-1


[Site "https://www.chess.com"]

[Event "Titled Tuesday Blitz April 25 Late 2023"]
[White "Zhigalko, Sergei"]
[Black "Bluebaum, Matthias"]
[WhiteFideId "13502956"]
[BlackFideId "24651516"]
[WhiteElo "2626"]
[BlackElo "2638"]
[Result "0-1"]
[Round "07"]
[TimeControl "180+2"]
[Date "2023.04.25"]
[WhiteClock "0:00:02"]
[BlackClock "0:00:53"]

1. e4 {[%clk 0:03:00]}  e6 {[%clk 0:03:00]} 2. d4 {[%clk 0:03:01]}  d5 {[%clk 0:03:01]} 3. e5 {[%clk 0:03:01]}  c5 {[%clk 0:03:01]} 4. c3 {[%clk 0:03:02]}  Nc6 {[%clk 0:03:02]} 5. Nf3 {[%clk 0:03:02]}  Nge7 {[%clk 0:03:03]} 6. Na3 {[%clk 0:03:00]}  Bd7 {[%clk 0:03:03]} 7. Nc2 {[%clk 0:02:54]}  Qa5 {[%clk 0:03:03]} 8. Bd3 {[%clk 0:02:41]}  Nxd4 {[%clk 0:03:03]} 9. Ncxd4 {[%clk 0:02:40]}  cxd4 {[%clk 0:03:04]} 10. Nxd4 {[%clk 0:02:40]}  Nc6 {[%clk 0:03:05]} 11. Nxc6 {[%clk 0:02:22]}  Bxc6 {[%clk 0:03:06]} 12. O-O {[%clk 0:02:22]}  d4 {[%clk 0:03:06]} 13. cxd4 {[%clk 0:02:01]}  Qd5 {[%clk 0:03:04]} 14. Qg4 {[%clk 0:02:01]}  h5 {[%clk 0:03:01]} 15. Qh3 {[%clk 0:02:01]}  Qxd4 {[%clk 0:02:55]} 16. Bg5 {[%clk 0:01:31]}  Qxe5 {[%clk 0:02:44]} 17. f4 {[%clk 0:01:30]}  Bc5+ {[%clk 0:02:18]} 18. Kh1 {[%clk 0:01:29]}  Qe3 {[%clk 0:02:19]} 19. Qxe3 {[%clk 0:01:11]}  Bxe3 {[%clk 0:02:20]} 20. Rae1 {[%clk 0:01:12]}  Bd4 {[%clk 0:02:19]} 21. f5 {[%clk 0:01:12]}  e5 {[%clk 0:02:17]} 22. f6 {[%clk 0:01:13]}  g6 {[%clk 0:02:04]} 23. Bc4 {[%clk 0:01:00]}  O-O {[%clk 0:02:00]} 24. Re2 {[%clk 0:00:25]}  Rac8 {[%clk 0:01:58]} 25. b3 {[%clk 0:00:21]}  Rfd8 {[%clk 0:01:56]} 26. h4 {[%clk 0:00:11]}  Bd5 {[%clk 0:01:41]} 27. Bd3 {[%clk 0:00:11]}  Be6 {[%clk 0:01:39]} 28. Be4 {[%clk 0:00:09]}  b6 {[%clk 0:01:39]} 29. Be3 {[%clk 0:00:03]}  Rc3 {[%clk 0:01:34]} 30. Bxd4 {[%clk 0:00:02]}  Rxd4 {[%clk 0:01:35]} 31. Rfe1 {[%clk 0:00:02]}  a5 {[%clk 0:01:04]} 32. Kg1 {[%clk 0:00:02]}  b5 {[%clk 0:01:04]} 33. Bf3 {[%clk 0:00:02]}  a4 {[%clk 0:00:53]} 0-1


[Site "https://www.chess.com"]